[Event "Late-Titled-Tuesday-Blitz-September-05-2023"]
[Site "Chess.com"]
[Date "2023.09.05"]
[Round "1"]
[White "SONOFHOLYGOD"]
[Black "BeautiFullMindChess"]
[Result "0-1"]
[WhiteElo "2612"]
[BlackElo "2342"]
[TimeControl "180+1"]
[EndTime "14:07:30 PDT"]
[Termination "BeautiFullMindChess won by checkmate"]

1. d4 {[%clk 0:02:56.9]} 1... Nf6 {[%clk 0:02:54.4]} 2. c4 {[%clk 0:02:56.3]}
2... e6 {[%clk 0:02:54.8]} 3. Nf3 {[%clk 0:02:55]} 3... d5 {[%clk 0:02:53.7]} 4.
g3 {[%clk 0:02:51.4]} 4... h6 {[%clk 0:02:53.3]} 5. Bg2 {[%clk 0:02:50.9]} 5...
Bd6 {[%clk 0:02:52.7]} 6. O-O {[%clk 0:02:49]} 6... O-O {[%clk 0:02:52.8]} 7.
Qc2 {[%clk 0:02:49.5]} 7... b6 {[%clk 0:02:53.3]} 8. b3 {[%clk 0:02:45]} 8...
Bb7 {[%clk 0:02:52.2]} 9. c5 {[%clk 0:02:31.6]} 9... bxc5 {[%clk 0:02:38.9]} 10.
dxc5 {[%clk 0:02:30.8]} 10... Be7 {[%clk 0:02:39.4]} 11. Bb2 {[%clk 0:02:28.2]}
11... c6 {[%clk 0:02:27]} 12. Rd1 {[%clk 0:02:21.8]} 12... Nbd7 {[%clk 0:02:27]}
13. Bd4 {[%clk 0:02:10.4]} 13... a5 {[%clk 0:02:26.6]} 14. a3 {[%clk 0:02:01.7]}
14... Ne4 {[%clk 0:02:24.7]} 15. b4 {[%clk 0:01:58.4]} 15... axb4 {[%clk
0:02:23.9]} 16. axb4 {[%clk 0:01:59.3]} 16... Rxa1 {[%clk 0:02:23.4]} 17. Bxa1
{[%clk 0:02:00.2]} 17... Ba6 {[%clk 0:02:12.2]} 18. Nc3 {[%clk 0:01:55.7]} 18...
Nxc3 {[%clk 0:02:07.3]} 19. Bxc3 {[%clk 0:01:56.6]} 19... Bf6 {[%clk 0:02:02.4]}
20. e4 {[%clk 0:00:49.6]} 20... Bxc3 {[%clk 0:01:38.2]} 21. Qxc3 {[%clk
0:00:50.5]} 21... Be2 {[%clk 0:01:38.2]} 22. Ra1 {[%clk 0:00:35.6]} 22... Bxf3
{[%clk 0:01:31.1]} 23. Bxf3 {[%clk 0:00:35.1]} 23... Qb8 {[%clk 0:01:29.7]} 24.
exd5 {[%clk 0:00:32.5]} 24... exd5 {[%clk 0:01:26.8]} 25. Rb1 {[%clk 0:00:17.6]}
25... Ne5 {[%clk 0:01:17.5]} 26. Bg2 {[%clk 0:00:16.2]} 26... Re8 {[%clk
0:01:15.1]} 27. b5 {[%clk 0:00:15.4]} 27... cxb5 {[%clk 0:00:59.2]} 28. Bxd5
{[%clk 0:00:15.7]} 28... Qd8 {[%clk 0:00:55]} 29. Bg2 {[%clk 0:00:11.3]} 29...
Nc4 {[%clk 0:00:31]} 30. h3 {[%clk 0:00:10.6]} 30... Qd7 {[%clk 0:00:17.5]} 31.
c6 {[%clk 0:00:09.1]} 31... Qf5 {[%clk 0:00:18.1]} 32. Rd1 {[%clk 0:00:06.4]}
32... Qc5 {[%clk 0:00:14.7]} 33. Kh2 {[%clk 0:00:02.5]} 33... b4 {[%clk
0:00:15.1]} 34. Qd3 {[%clk 0:00:02.5]} 34... Ne5 {[%clk 0:00:11]} 35. Qd6 {[%clk
0:00:02.4]} 35... Qxf2 {[%clk 0:00:09.8]} 36. c7 {[%clk 0:00:02]} 36... Nf3+
{[%clk 0:00:09]} 37. Kh1 {[%clk 0:00:02.6]} 37... Re1+ {[%clk 0:00:08.3]} 38.
Rxe1 {[%clk 0:00:02.9]} 38... Qxe1+ {[%clk 0:00:09]} 39. Bf1 {[%clk 0:00:02.5]}
39... Qxf1# {[%clk 0:00:09.2]} 0-1

[Event "Late-Titled-Tuesday-Blitz-September-05-2023"]
[Site "Chess.com"]
[Date "2023.09.05"]
[Round "1"]
[White "boldpilot22622"]
[Black "PassedPawnMustPushed"]
[Result "1-0"]
[WhiteElo "2530"]
[BlackElo "2135"]
[TimeControl "180+1"]
[EndTime "14:07:38 PDT"]
[Termination "boldpilot22622 won by resignation"]

1. e4 {[%clk 0:03:00.9]} 1... Nf6 {[%clk 0:02:57.9]} 2. e5 {[%clk 0:03:00.6]}
2... Ng8 {[%clk 0:02:58.2]} 3. d4 {[%clk 0:03:00.9]} 3... d6 {[%clk 0:02:58.8]}
4. exd6 {[%clk 0:03:00.8]} 4... cxd6 {[%clk 0:02:58.5]} 5. c4 {[%clk 0:03:01.5]}
5... g6 {[%clk 0:02:58.7]} 6. Nc3 {[%clk 0:03:02.2]} 6... Bg7 {[%clk 0:02:59.3]}
7. Be3 {[%clk 0:03:02.8]} 7... Nc6 {[%clk 0:02:58.4]} 8. Rc1 {[%clk 0:03:03.4]}
8... Bf5 {[%clk 0:02:54]} 9. b3 {[%clk 0:03:03.8]} 9... Qa5 {[%clk 0:02:53]} 10.
Be2 {[%clk 0:03:02.2]} 10... Nf6 {[%clk 0:02:47.1]} 11. Qd2 {[%clk 0:02:48]}
11... O-O {[%clk 0:02:34.2]} 12. Nf3 {[%clk 0:02:48.1]} 12... Ne4 {[%clk
0:02:28.4]} 13. Nxe4 {[%clk 0:02:47.3]} 13... Bxe4 {[%clk 0:02:29.3]} 14. Qxa5
{[%clk 0:02:44.9]} 14... Nxa5 {[%clk 0:02:30.2]} 15. O-O {[%clk 0:02:45.1]}
15... a6 {[%clk 0:02:10.7]} 16. d5 {[%clk 0:02:44.4]} 16... Bb2 {[%clk 0:02:02]}
17. Rcd1 {[%clk 0:02:36.4]} 17... b5 {[%clk 0:01:49.9]} 18. Bb6 {[%clk
0:02:32.5]} 18... Nb7 {[%clk 0:01:40.6]} 19. Rd2 {[%clk 0:02:25.7]} 19... Bc3
{[%clk 0:01:37.2]} 20. Rdd1 {[%clk 0:02:22.4]} 20... b4 {[%clk 0:01:29.3]} 21.
Nd4 {[%clk 0:02:18.1]} 21... Bxd4 {[%clk 0:01:06.1]} 22. Bxd4 {[%clk 0:02:09.5]}
22... Nc5 {[%clk 0:01:05.7]} 23. g4 {[%clk 0:02:06.9]} 23... Bc2 {[%clk
0:00:46.4]} 24. Rd2 {[%clk 0:02:02.8]} 24... Bxb3 {[%clk 0:00:46.8]} 25. axb3
{[%clk 0:02:02.1]} 25... Nxb3 {[%clk 0:00:46.8]} 26. Rd3 {[%clk 0:02:02.5]}
26... Nxd4 {[%clk 0:00:45.9]} 27. Rxd4 {[%clk 0:02:02.2]} 27... a5 {[%clk
0:00:46.7]} 28. Rb1 {[%clk 0:01:58.2]} 28... Rfb8 {[%clk 0:00:45.4]} 29. Rd2
{[%clk 0:01:52.1]} 29... a4 {[%clk 0:00:45.6]} 30. Ra2 {[%clk 0:01:51.9]} 30...
b3 {[%clk 0:00:37.7]} 31. Ra3 {[%clk 0:01:50.9]} 31... Rb4 {[%clk 0:00:37.9]}
32. Kf1 {[%clk 0:01:47.9]} 32... Kg7 {[%clk 0:00:37.6]} 33. Ke1 {[%clk
0:01:48.4]} 33... Kf6 {[%clk 0:00:35.5]} 34. Kd2 {[%clk 0:01:48.5]} 34... Ke5
{[%clk 0:00:35.3]} 35. Kc3 {[%clk 0:01:48.9]} 35... Rab8 {[%clk 0:00:35.8]} 36.
Rba1 {[%clk 0:01:35.3]} 36... b2 {[%clk 0:00:33.6]} 37. Rb1 {[%clk 0:01:35.4]}
37... Ke4 {[%clk 0:00:29.6]} 38. Bd1 {[%clk 0:01:26.4]} 38... Rxc4+ {[%clk
0:00:24.4]} 39. Kxc4 {[%clk 0:01:24.3]} 39... Rc8+ {[%clk 0:00:24.9]} 40. Kb5
{[%clk 0:01:22.7]} 40... Rc1 {[%clk 0:00:25.6]} 41. Rxb2 {[%clk 0:01:18.7]}
41... Rxd1 {[%clk 0:00:26]} 42. Rb4+ {[%clk 0:01:16]} 42... Kxd5 {[%clk
0:00:26.2]} 43. Raxa4 {[%clk 0:01:16.3]} 43... e5 {[%clk 0:00:25.7]} 44. Ra5
{[%clk 0:01:12.1]} 44... Rd2 {[%clk 0:00:21.5]} 45. Kb6+ {[%clk 0:01:11.2]}
45... Ke6 {[%clk 0:00:21.9]} 46. Kc7 {[%clk 0:00:58.4]} 46... Rxf2 {[%clk
0:00:21.4]} 47. Rb6 {[%clk 0:00:58.9]} 47... Rd2 {[%clk 0:00:15.4]} 48. Raa6
{[%clk 0:00:57.8]} 48... e4 {[%clk 0:00:15.2]} 49. Rxd6+ {[%clk 0:00:57.6]}
49... Rxd6 {[%clk 0:00:16.1]} 50. Rxd6+ {[%clk 0:00:58]} 50... Ke5 {[%clk
0:00:16.9]} 51. Rd7 {[%clk 0:00:54.7]} 51... Kf4 {[%clk 0:00:17.3]} 52. Rxf7+
{[%clk 0:00:54.2]} 52... Kxg4 {[%clk 0:00:17.8]} 53. Rxh7 {[%clk 0:00:53.7]}
53... e3 {[%clk 0:00:17.7]} 54. Re7 {[%clk 0:00:49.1]} 54... Kf3 {[%clk
0:00:17.9]} 55. Rf7+ {[%clk 0:00:40.4]} 55... Kg2 {[%clk 0:00:17.4]} 56. Rg7
{[%clk 0:00:40.2]} 56... e2 {[%clk 0:00:12.1]} 57. Rxg6+ {[%clk 0:00:40.3]}
57... Kf2 {[%clk 0:00:12.6]} 58. Re6 {[%clk 0:00:40]} 58... e1=Q {[%clk
0:00:11.8]} 59. Rxe1 {[%clk 0:00:40]} 59... Kxe1 {[%clk 0:00:12.7]} 60. h4
{[%clk 0:00:40.7]} 60... Kf2 {[%clk 0:00:13.1]} 61. h5 {[%clk 0:00:41.6]} 1-0

[Event "Late-Titled-Tuesday-Blitz-September-05-2023"]
[Site "Chess.com"]
[Date "2023.09.05"]
[Round "1"]
[White "stasOR4ik"]
[Black "alexrustemov"]
[Result "0-1"]
[WhiteElo "2458"]
[BlackElo "2879"]
[TimeControl "180+1"]
[EndTime "14:07:39 PDT"]
[Termination "alexrustemov won by checkmate"]

1. c4 {[%clk 0:03:00.3]} 1... c5 {[%clk 0:02:57]} 2. Nc3 {[%clk 0:03:00.4]} 2...
g6 {[%clk 0:02:57]} 3. g3 {[%clk 0:03:01]} 3... Bg7 {[%clk 0:02:57.6]} 4. Bg2
{[%clk 0:03:01.7]} 4... Nc6 {[%clk 0:02:58.2]} 5. e4 {[%clk 0:03:01.8]} 5... e6
{[%clk 0:02:54.4]} 6. h4 {[%clk 0:03:01]} 6... h6 {[%clk 0:02:53]} 7. d3 {[%clk
0:03:00.6]} 7... d6 {[%clk 0:02:51.8]} 8. Bf4 {[%clk 0:02:58.8]} 8... a6 {[%clk
0:02:44.2]} 9. Qd2 {[%clk 0:02:55.6]} 9... Nge7 {[%clk 0:02:44.3]} 10. Nf3
{[%clk 0:02:52.6]} 10... Rb8 {[%clk 0:02:42.8]} 11. a4 {[%clk 0:02:24.8]} 11...
e5 {[%clk 0:02:32.4]} 12. Be3 {[%clk 0:02:24.4]} 12... Be6 {[%clk 0:02:30.5]}
13. Nd5 {[%clk 0:02:14.1]} 13... b5 {[%clk 0:02:26.4]} 14. axb5 {[%clk
0:01:58.4]} 14... axb5 {[%clk 0:02:27.3]} 15. Qc1 {[%clk 0:01:35.5]} 15... bxc4
{[%clk 0:02:17.2]} 16. dxc4 {[%clk 0:01:34.4]} 16... Nd4 {[%clk 0:02:15.8]} 17.
Nxd4 {[%clk 0:01:34.6]} 17... exd4 {[%clk 0:02:09.1]} 18. Bf4 {[%clk 0:01:32]}
18... Nc6 {[%clk 0:01:34.6]} 19. Kf1 {[%clk 0:01:18.2]} 19... h5 {[%clk
0:01:27.8]} 20. Bg5 {[%clk 0:01:13.1]} 20... f6 {[%clk 0:01:27.7]} 21. Bf4
{[%clk 0:01:11.4]} 21... O-O {[%clk 0:01:28.1]} 22. Bh3 {[%clk 0:00:59.4]} 22...
Bf7 {[%clk 0:01:22.3]} 23. g4 {[%clk 0:00:55]} 23... hxg4 {[%clk 0:01:19.8]} 24.
Bxg4 {[%clk 0:00:54.6]} 24... Re8 {[%clk 0:01:19]} 25. h5 {[%clk 0:00:47.4]}
25... g5 {[%clk 0:01:05.6]} 26. h6 {[%clk 0:00:47.8]} 26... Bf8 {[%clk
0:01:04.5]} 27. Nxf6+ {[%clk 0:00:24.1]} 27... Qxf6 {[%clk 0:01:03.2]} 28. Bxg5
{[%clk 0:00:24.6]} 28... Qe5 {[%clk 0:00:58.8]} 29. Bf5 {[%clk 0:00:11.4]} 29...
Be7 {[%clk 0:00:52.5]} 30. f4 {[%clk 0:00:08.9]} 30... Bxg5 {[%clk 0:00:46.5]}
31. Rg1 {[%clk 0:00:09.4]} 31... Kh8 {[%clk 0:00:39.8]} 32. Rxg5 {[%clk
0:00:09.4]} 32... Qf6 {[%clk 0:00:40.3]} 33. Qd2 {[%clk 0:00:08.2]} 33... Rg8
{[%clk 0:00:39.8]} 34. Qg2 {[%clk 0:00:06.7]} 34... Bxc4+ {[%clk 0:00:37.7]} 35.
Kg1 {[%clk 0:00:06.1]} 35... Ne7 {[%clk 0:00:31.6]} 36. Ra7 {[%clk 0:00:03.5]}
36... Nxf5 {[%clk 0:00:28.8]} 37. exf5 {[%clk 0:00:04.1]} 37... Bf7 {[%clk
0:00:25.8]} 38. Rg7 {[%clk 0:00:02.7]} 38... Rxg7 {[%clk 0:00:25.4]} 39. hxg7+
{[%clk 0:00:03.1]} 39... Qxg7 {[%clk 0:00:26.1]} 40. f6 {[%clk 0:00:02.9]} 40...
Qxg2+ {[%clk 0:00:25.5]} 41. Kxg2 {[%clk 0:00:03.8]} 41... Rxb2+ {[%clk
0:00:25.2]} 42. Kg3 {[%clk 0:00:04.2]} 42... Kg8 {[%clk 0:00:25.8]} 43. Kg4
{[%clk 0:00:04.8]} 43... Rb8 {[%clk 0:00:21.8]} 44. Kg5 {[%clk 0:00:04.7]} 44...
d3 {[%clk 0:00:22.1]} 45. Rd7 {[%clk 0:00:05]} 45... d5 {[%clk 0:00:21.1]} 46.
Re7 {[%clk 0:00:02.1]} 46... d2 {[%clk 0:00:20.3]} 47. Kh6 {[%clk 0:00:02.2]}
47... d1=Q {[%clk 0:00:18]} 48. f5 {[%clk 0:00:03.1]} 48... Qh5# {[%clk
0:00:17.5]} 0-1

[Event "Late-Titled-Tuesday-Blitz-September-05-2023"]
[Site "Chess.com"]
[Date "2023.09.05"]
[Round "1"]
[White "DeTimmerman"]
[Black "emeli_chess"]
[Result "1-0"]
[WhiteElo "2670"]
[BlackElo "2364"]
[TimeControl "180+1"]
[EndTime "14:07:43 PDT"]
[Termination "DeTimmerman won on time"]

1. b4 {[%clk 0:02:59.8]} 1... d5 {[%clk 0:02:50.7]} 2. Bb2 {[%clk 0:02:59.7]}
2... Bg4 {[%clk 0:02:50.2]} 3. Nf3 {[%clk 0:02:59.4]} 3... Bxf3 {[%clk
0:02:50.1]} 4. exf3 {[%clk 0:03:00.3]} 4... Nd7 {[%clk 0:02:49.6]} 5. c4 {[%clk
0:03:01.1]} 5... c6 {[%clk 0:02:48.2]} 6. Be2 {[%clk 0:03:00.4]} 6... e6 {[%clk
0:02:48.1]} 7. O-O {[%clk 0:02:59.7]} 7... Ndf6 {[%clk 0:02:45.8]} 8. b5 {[%clk
0:02:59.4]} 8... Bd6 {[%clk 0:02:42.4]} 9. a4 {[%clk 0:02:58.6]} 9... Ne7 {[%clk
0:02:41.7]} 10. d4 {[%clk 0:02:58.6]} 10... dxc4 {[%clk 0:02:39.5]} 11. Nd2
{[%clk 0:02:59]} 11... O-O {[%clk 0:02:32.1]} 12. Nxc4 {[%clk 0:02:59]} 12...
Bc7 {[%clk 0:02:27.7]} 13. Ne5 {[%clk 0:02:59.2]} 13... Nfd5 {[%clk 0:02:11.7]}
14. bxc6 {[%clk 0:02:56.1]} 14... Bxe5 {[%clk 0:02:08.5]} 15. dxe5 {[%clk
0:02:50.3]} 15... Nxc6 {[%clk 0:02:07.4]} 16. g3 {[%clk 0:02:50.8]} 16... Nde7
{[%clk 0:01:55.5]} 17. f4 {[%clk 0:02:47.8]} 17... Nf5 {[%clk 0:01:50.7]} 18.
Ba3 {[%clk 0:02:39.1]} 18... Qxd1 {[%clk 0:01:34.9]} 19. Raxd1 {[%clk 0:02:40]}
19... Rfd8 {[%clk 0:01:34.9]} 20. Bf3 {[%clk 0:02:40.2]} 20... a6 {[%clk
0:01:18.6]} 21. Be4 {[%clk 0:02:33.8]} 21... g6 {[%clk 0:01:13.5]} 22. Rb1
{[%clk 0:02:24.4]} 22... Rd4 {[%clk 0:01:08.5]} 23. Rfe1 {[%clk 0:02:04.8]}
23... Rxa4 {[%clk 0:01:07.5]} 24. Bc5 {[%clk 0:01:48]} 24... Rxe4 {[%clk
0:00:54.1]} 25. Rxe4 {[%clk 0:01:46.8]} 25... b5 {[%clk 0:00:54.3]} 26. Re2
{[%clk 0:01:35.6]} 26... Nfe7 {[%clk 0:00:52.3]} 27. Ra2 {[%clk 0:01:34.5]}
27... a5 {[%clk 0:00:21]} 28. Rxb5 {[%clk 0:01:31.5]} 28... Nd5 {[%clk
0:00:20.9]} 29. Ra3 {[%clk 0:01:22.6]} 29... h5 {[%clk 0:00:19.9]} 30. Kg2
{[%clk 0:01:18.5]} 30... h4 {[%clk 0:00:18.5]} 31. Kh3 {[%clk 0:01:11.2]} 31...
hxg3 {[%clk 0:00:18.1]} 32. hxg3 {[%clk 0:01:12.1]} 32... Kg7 {[%clk 0:00:18.3]}
33. Bd6 {[%clk 0:01:07.2]} 33... Rh8+ {[%clk 0:00:17]} 34. Kg2 {[%clk
0:01:07.3]} 34... Rc8 {[%clk 0:00:15.7]} 35. Rc5 {[%clk 0:01:07.2]} 35... Ndb4
{[%clk 0:00:13.7]} 36. Raxa5 {[%clk 0:01:05.2]} 36... Nxa5 {[%clk 0:00:13.8]}
37. Rxc8 {[%clk 0:01:05.1]} 37... Nd5 {[%clk 0:00:14]} 38. Bf8+ {[%clk
0:01:04.2]} 38... Kh7 {[%clk 0:00:13.9]} 39. Rb8 {[%clk 0:00:50.3]} 39... Nc4
{[%clk 0:00:13.4]} 40. Rb7 {[%clk 0:00:49.8]} 40... Kg8 {[%clk 0:00:13.3]} 41.
Bh6 {[%clk 0:00:49.7]} 41... Na5 {[%clk 0:00:12.3]} 42. Rd7 {[%clk 0:00:45.3]}
42... Nc4 {[%clk 0:00:09.6]} 43. Bg5 {[%clk 0:00:44.8]} 43... Ncb6 {[%clk
0:00:09.5]} 44. Rb7 {[%clk 0:00:44.8]} 44... Nc4 {[%clk 0:00:09.1]} 45. Bf6
{[%clk 0:00:45.3]} 45... Nxf6 {[%clk 0:00:08.8]} 46. exf6 {[%clk 0:00:46.2]}
46... Na5 {[%clk 0:00:07.7]} 47. Rc7 {[%clk 0:00:45.7]} 47... Nb3 {[%clk
0:00:07.1]} 48. g4 {[%clk 0:00:46.1]} 48... Nd4 {[%clk 0:00:07.1]} 49. Rc8+
{[%clk 0:00:44.1]} 49... Kh7 {[%clk 0:00:06.8]} 50. Rf8 {[%clk 0:00:45]} 50...
Ne2 {[%clk 0:00:03.5]} 51. Rxf7+ {[%clk 0:00:42]} 51... Kg8 {[%clk 0:00:03.3]}
52. Rg7+ {[%clk 0:00:41.9]} 52... Kh8 {[%clk 0:00:03.8]} 53. Kf3 {[%clk
0:00:41.5]} 53... Nd4+ {[%clk 0:00:02.7]} 54. Ke4 {[%clk 0:00:40.1]} 54... e5
{[%clk 0:00:02.9]} 55. Rxg6 {[%clk 0:00:38.8]} 55... Ne2 {[%clk 0:00:02]} 56. f7
{[%clk 0:00:37.2]} 1-0

[Event "Late-Titled-Tuesday-Blitz-September-05-2023"]
[Site "Chess.com"]
[Date "2023.09.05"]
[Round "1"]
[White "buenamor1972"]
[Black "SRob2003"]
[Result "0-1"]
[WhiteElo "2345"]
[BlackElo "2653"]
[TimeControl "180+1"]
[EndTime "14:07:44 PDT"]
[Termination "SRob2003 won on time"]

1. Nf3 {[%clk 0:02:59.4]} 1... d5 {[%clk 0:02:59.6]} 2. g3 {[%clk 0:02:59.1]}
2... Bg4 {[%clk 0:02:59.3]} 3. Bg2 {[%clk 0:02:59.3]} 3... Nd7 {[%clk 0:03:00]}
4. h3 {[%clk 0:02:59.5]} 4... Bh5 {[%clk 0:03:00.2]} 5. d3 {[%clk 0:02:59]} 5...
c6 {[%clk 0:03:00.7]} 6. O-O {[%clk 0:02:58.6]} 6... e5 {[%clk 0:02:57.2]} 7.
Nbd2 {[%clk 0:02:58.6]} 7... Ngf6 {[%clk 0:02:57.7]} 8. e4 {[%clk 0:02:47.9]}
8... dxe4 {[%clk 0:02:56.3]} 9. dxe4 {[%clk 0:02:47.4]} 9... Bc5 {[%clk
0:02:56.7]} 10. Qe2 {[%clk 0:02:47]} 10... O-O {[%clk 0:02:56.5]} 11. a4 {[%clk
0:02:47.1]} 11... Qc7 {[%clk 0:02:55.2]} 12. Nb3 {[%clk 0:02:46.3]} 12... Be7
{[%clk 0:02:53.4]} 13. g4 {[%clk 0:02:31.3]} 13... Bg6 {[%clk 0:02:42.3]} 14.
Nh4 {[%clk 0:02:31.1]} 14... Rfe8 {[%clk 0:02:42.7]} 15. Nf5 {[%clk 0:02:22.7]}
15... Nf8 {[%clk 0:02:36.2]} 16. Rd1 {[%clk 0:02:06.3]} 16... Ne6 {[%clk
0:02:29.8]} 17. Be3 {[%clk 0:02:05]} 17... Nf4 {[%clk 0:02:22.2]} 18. Qc4 {[%clk
0:02:01.9]} 18... Bf8 {[%clk 0:02:18.8]} 19. Bf1 {[%clk 0:02:00.5]} 19... Red8
{[%clk 0:01:45.1]} 20. a5 {[%clk 0:01:11.3]} 20... b5 {[%clk 0:00:35.2]} 21.
axb6 {[%clk 0:01:06.2]} 21... axb6 {[%clk 0:00:36.1]} 22. Rxd8 {[%clk 0:01:02]}
22... Rxd8 {[%clk 0:00:32.6]} 23. f3 {[%clk 0:00:37.5]} 23... b5 {[%clk
0:00:31.7]} 24. Qc3 {[%clk 0:00:34.6]} 24... Bxf5 {[%clk 0:00:28.1]} 25. gxf5
{[%clk 0:00:29.1]} 25... N6h5 {[%clk 0:00:20.9]} 26. Kh2 {[%clk 0:00:12.1]}
26... Qd6 {[%clk 0:00:09.1]} 27. Qc5 {[%clk 0:00:08.1]} 27... Qf6 {[%clk
0:00:07.2]} 28. Qb6 {[%clk 0:00:05.4]} 28... Qg5 {[%clk 0:00:06.6]} 29. Bf2
{[%clk 0:00:04.3]} 29... Nf6 {[%clk 0:00:02]} 30. Qe3 {[%clk 0:00:03.9]} 30...
Qh5 {[%clk 0:00:01.9]} 31. Bg3 {[%clk 0:00:02.8]} 31... c5 {[%clk 0:00:01.2]}
32. Bxf4 {[%clk 0:00:02.8]} 32... exf4 {[%clk 0:00:01.4]} 33. Qe2 {[%clk
0:00:02.9]} 33... c4 {[%clk 0:00:01.9]} 34. Nc1 {[%clk 0:00:03]} 34... Qg5
{[%clk 0:00:02.3]} 35. Qg2 {[%clk 0:00:03.2]} 35... Qh4 {[%clk 0:00:02]} 36. Ne2
{[%clk 0:00:02.3]} 36... Rd2 {[%clk 0:00:01.4]} 37. Kg1 {[%clk 0:00:02.5]} 37...
Nh5 {[%clk 0:00:01.9]} 38. Qg4 {[%clk 0:00:02.5]} 38... Qxg4+ {[%clk 0:00:01.9]}
39. hxg4 {[%clk 0:00:02.6]} 39... Bc5+ {[%clk 0:00:02.1]} 40. Kh1 {[%clk
0:00:01.4]} 40... Ng3+ {[%clk 0:00:03]} 41. Nxg3 {[%clk 0:00:01.4]} 41... fxg3
{[%clk 0:00:03.9]} 42. Ra8+ {[%clk 0:00:01]} 42... Bf8 {[%clk 0:00:04.6]} 0-1

[Event "Late-Titled-Tuesday-Blitz-September-05-2023"]
[Site "Chess.com"]
[Date "2023.09.05"]
[Round "1"]
[White "angryspacevoid"]
[Black "Godzillator"]
[Result "1/2-1/2"]
[WhiteElo "2596"]
[BlackElo "2318"]
[TimeControl "180+1"]
[EndTime "14:07:45 PDT"]
[Termination "Game drawn by repetition"]

1. e4 {[%clk 0:02:59]} 1... d5 {[%clk 0:02:55.6]} 2. exd5 {[%clk 0:02:52.8]}
2... Qxd5 {[%clk 0:02:56.5]} 3. Nc3 {[%clk 0:02:53.2]} 3... Qd6 {[%clk
0:02:56.5]} 4. d4 {[%clk 0:02:53.4]} 4... c6 {[%clk 0:02:56.6]} 5. Nf3 {[%clk
0:02:50.3]} 5... Bg4 {[%clk 0:02:56]} 6. h3 {[%clk 0:02:45.4]} 6... Bxf3 {[%clk
0:02:55.3]} 7. Qxf3 {[%clk 0:02:44.7]} 7... Nf6 {[%clk 0:02:55.4]} 8. Be3 {[%clk
0:02:43.3]} 8... e6 {[%clk 0:02:54.3]} 9. Bd3 {[%clk 0:02:42.4]} 9... Nbd7
{[%clk 0:02:54.2]} 10. O-O {[%clk 0:02:39.2]} 10... Qc7 {[%clk 0:02:51.8]} 11.
Rfe1 {[%clk 0:02:38.6]} 11... Bd6 {[%clk 0:02:51.3]} 12. Ne4 {[%clk 0:02:34.8]}
12... Nxe4 {[%clk 0:02:49.7]} 13. Qxe4 {[%clk 0:02:35.7]} 13... Nf6 {[%clk
0:02:49.1]} 14. Qh4 {[%clk 0:02:36]} 14... Be7 {[%clk 0:02:44.9]} 15. Bf4 {[%clk
0:02:33.1]} 15... Qb6 {[%clk 0:02:44.1]} 16. Be5 {[%clk 0:02:24.4]} 16... Nd7
{[%clk 0:02:41.2]} 17. Qg3 {[%clk 0:02:18.2]} 17... Nxe5 {[%clk 0:02:40.8]} 18.
dxe5 {[%clk 0:02:16.2]} 18... O-O {[%clk 0:02:38.7]} 19. Rab1 {[%clk 0:02:03.3]}
19... Rfd8 {[%clk 0:02:35.6]} 20. a3 {[%clk 0:01:59.4]} 20... Rd4 {[%clk
0:02:34.5]} 21. Re3 {[%clk 0:01:52.3]} 21... Rad8 {[%clk 0:02:33.5]} 22. Rf3
{[%clk 0:01:50.2]} 22... Bf8 {[%clk 0:02:28.7]} 23. Qg5 {[%clk 0:01:46.3]} 23...
g6 {[%clk 0:02:25.4]} 24. h4 {[%clk 0:01:42.6]} 24... Qc7 {[%clk 0:02:21.2]} 25.
h5 {[%clk 0:01:40.3]} 25... Be7 {[%clk 0:02:21]} 26. Qg3 {[%clk 0:01:34.8]}
26... Bh4 {[%clk 0:02:17.7]} 27. Qh2 {[%clk 0:01:31.7]} 27... Bg5 {[%clk
0:02:13.2]} 28. hxg6 {[%clk 0:01:27]} 28... fxg6 {[%clk 0:02:10.5]} 29. Re1
{[%clk 0:01:20.4]} 29... Rf8 {[%clk 0:01:59.7]} 30. Qh3 {[%clk 0:01:12.4]} 30...
Rxf3 {[%clk 0:01:53.9]} 31. Qxf3 {[%clk 0:01:11.9]} 31... Rf4 {[%clk 0:01:47.9]}
32. Qg3 {[%clk 0:01:07]} 32... Bh6 {[%clk 0:01:42]} 33. b4 {[%clk 0:01:02.9]}
33... Qf7 {[%clk 0:01:41.3]} 34. f3 {[%clk 0:01:02.2]} 34... Rd4 {[%clk
0:01:32.5]} 35. Qf2 {[%clk 0:01:01.4]} 35... Rd5 {[%clk 0:01:23.6]} 36. Qxa7
{[%clk 0:00:59.6]} 36... Bf4 {[%clk 0:01:12.8]} 37. Bc4 {[%clk 0:00:56.7]} 37...
Rxe5 {[%clk 0:01:12.4]} 38. Qb8+ {[%clk 0:00:54.7]} 38... Qf8 {[%clk 0:01:11]}
39. Bxe6+ {[%clk 0:00:54.3]} 39... Kg7 {[%clk 0:01:07.8]} 40. Qxb7+ {[%clk
0:00:47.7]} 40... Kh6 {[%clk 0:01:07.8]} 41. Rxe5 {[%clk 0:00:45.5]} 41... Bxe5
{[%clk 0:01:08.1]} 42. Qxc6 {[%clk 0:00:34.4]} 42... Bd4+ {[%clk 0:01:06.3]} 43.
Kf1 {[%clk 0:00:28.7]} 43... Qf4 {[%clk 0:01:06]} 44. Qe4 {[%clk 0:00:21.5]}
44... Qc1+ {[%clk 0:01:05.8]} 45. Ke2 {[%clk 0:00:21.4]} 45... Qg1 {[%clk
0:00:56.9]} 46. Qf4+ {[%clk 0:00:15]} 46... Kg7 {[%clk 0:00:57.1]} 47. Qf7+
{[%clk 0:00:14.6]} 47... Kh6 {[%clk 0:00:57.4]} 48. Qf8+ {[%clk 0:00:14.9]}
48... Kg5 {[%clk 0:00:56.3]} 49. Qe7+ {[%clk 0:00:14.4]} 49... Kh6 {[%clk
0:00:56.2]} 50. Qh4+ {[%clk 0:00:14.2]} 50... Kg7 {[%clk 0:00:56.5]} 51. Qe7+
{[%clk 0:00:12.7]} 51... Kh6 {[%clk 0:00:56.8]} 52. Qf8+ {[%clk 0:00:11.8]}
52... Kg5 {[%clk 0:00:55.8]} 53. f4+ {[%clk 0:00:11.1]} 53... Kh5 {[%clk
0:00:45.8]} 54. Bd5 {[%clk 0:00:07.3]} 54... Qe3+ {[%clk 0:00:43.8]} 55. Kd1
{[%clk 0:00:06.8]} 55... Qg1+ {[%clk 0:00:43]} 56. Kd2 {[%clk 0:00:06.7]} 56...
Qe3+ {[%clk 0:00:40.6]} 57. Kd1 {[%clk 0:00:07.1]} 57... Qg1+ {[%clk 0:00:31]}
58. Ke2 {[%clk 0:00:04.2]} 58... Qe3+ {[%clk 0:00:29.5]} 59. Kd1 {[%clk
0:00:04.3]} 1/2-1/2